[Event "EYCC Open-U14 2019"]
[Site "Bratislava"]
[Date "2019.08.08"]
[Round "7.43"]
[White "Indriunas, Matas"]
[Black "Krivenko, Dion"]
[Result "1/2-1/2"]
[ECO "B34"]
[WhiteElo "1960"]
[BlackElo "1700"]
[Annotator "NA"]
[PlyCount "54"]
[EventDate "2019.08.02"]
[EventType "swiss"]
[EventCountry "SVK"]
[SourceTitle "playchess.com"]
[Source "ChessBase"]
[SourceQuality "1"]
[TimeControl "40/5400+30:1800+30"]

1. e4 {[%emt 0:00:00]} c5 {[%emt 0:00:00]} 2. Nc3 {[%emt 0:00:00]} Nc6 {[%emt 0:00:00]} 3. Nge2 {[%emt 0:00:09]} g6 {[%emt 0:00:03]} 4. d4 {[%emt 0:00:45]} cxd4 {[%emt 0:00:07]} 5. Nxd4 {[%emt 0:00:06]} Bg7 {[%emt 0:00:08]} 6. Be3 {[%emt 0:00:12]} Nf6 {[%emt 0:00:25]} 7. Nxc6 {[%emt 0:05:43]} bxc6 {[%emt 0:01:56]} 8. e5 {[%emt 0:00:13]} Ng8 {[%emt 0:00:34]} 9. Bd4 {[%emt 0:00:42]} Qc7 {[%emt 0:01:11]} 10. e6 {[%emt 0:11:09]} Nf6 {[%emt 0:04:12]} 11. exd7+ {[%emt 0:05:33]} Bxd7 {[%emt 0:03:24]} 12. Qe2 {[%emt 0:09:35]} O-O {[%emt 0:06:01]} 13. g3 {[%emt 0:02:52]} c5 {[%emt 0:04:23]} 14. Bxf6 {[%emt 0:10:32]} exf6 {[%emt 0:03:23]} 15. O-O-O {[%emt 0:02:26]} Bc6 {[%emt 0:08:20]} 16. Nd5 {[%emt 0:06:52]} Bxd5 {[%emt 0:03:05]} 17. Rxd5 {[%emt 0:00:07]} Rfe8 {[%emt 0:06:26]} 18. Qd2 {[%emt 0:05:39]} c4 {[%emt 0:11:10]} 19. Bg2 {[%emt 0:03:51]} Rab8 {[%emt 0:01:15]} 20. c3 {[%emt 0:02:07]} Qb7 {[%emt 0:07:23]} 21. f4 {[%emt 0:10:38]} Qa6 {[%emt 0:02:05]} 22. Kb1 {[%emt 0:00:38]} Qe6 {[%emt 0:04:31]} 23. Rd1 {[%emt 0:02:53]} Bf8 {[%emt 0:02:15]} 24. Ka1 {[%emt 0:04:39]} Be7 {[%emt 0:03:54]} 25. Rd7 {[%emt 0:03:21]} Red8 {[%emt 0:02:41]} 26. Rxd8+ Rxd8 27. Bd5 Qc8 1/2-1/2

[Event "EYCC Open-U14 2019"]
[Site "Bratislava"]
[Date "2019.08.08"]
[Round "7.44"]
[White "Andjelic, Djordje"]
[Black "Grzesik, Gracjan"]
[Result "0-1"]
[ECO "A47"]
[WhiteElo "1787"]
[BlackElo "2004"]
[Annotator "NA"]
[PlyCount "68"]
[EventDate "2019.08.02"]
[EventType "swiss"]
[EventCountry "SVK"]
[SourceTitle "playchess.com"]
[Source "ChessBase"]
[SourceQuality "1"]
[TimeControl "40/5400+30:1800+30"]

1. d4 {[%emt 0:00:00]} Nf6 {[%emt 0:00:00]} 2. Nf3 {[%emt 0:00:00]} b6 {[%emt 0:00:33]} 3. Bf4 {[%emt 0:00:19]} Bb7 {[%emt 0:00:21]} 4. Nbd2 {[%emt 0:00:29]} g6 {[%emt 0:03:04]} 5. e3 {[%emt 0:01:43]} Bg7 {[%emt 0:01:35]} 6. Be2 {[%emt 0:01:31]} O-O {[%emt 0:01:09]} 7. O-O {[%emt 0:00:21]} d6 {[%emt 0:01:38]} 8. h3 {[%emt 0:03:36]} Nbd7 {[%emt 0:00:30]} 9. c3 {[%emt 0:03:06]} Qe8 {[%emt 0:12:16]} 10. Nc4 {[%emt 0:11:41]} Ne4 {[%emt 0:08:36]} 11. Qc2 {[%emt 0:08:17]} e5 {[%emt 0:08:54]} 12. dxe5 {[%emt 0:02:01]} dxe5 {[%emt 0:00:47]} 13. Bh2 {[%emt 0:00:19]} Kh8 {[%emt 0:08:31]} 14. Nfd2 {[%emt 0:05:28]} Nxd2 {[%emt 0:05:33]} 15. Nxd2 {[%emt 0:00:40]} f5 {[%emt 0:02:59]} 16. Rad1 {[%emt 0:05:39]} Qe7 {[%emt 0:05:52]} 17. Nc4 {[%emt 0:07:08]} Qg5 {[%emt 0:09:49]} 18. g3 {[%emt 0:03:58]} Rad8 {[%emt 0:08:15]} 19. f4 {[%emt 0:01:41]} exf4 {[%emt 0:11:04]} 20. exf4 {[%emt 0:00:26]} Qe7 {[%emt 0:00:40]} 21. b4 {[%emt 0:04:13]} b5 {[%emt 0:02:39]} 22. Ne5 {[%emt 0:00:24]} Nxe5 {[%emt 0:01:22]} 23. fxe5 {[%emt 0:00:08]} Qxe5 {[%emt 0:00:28]} 24. Bf3 {[%emt 0:00:24]} Be4 {[%emt 0:02:24]} 25. Bxe4 {[%emt 0:00:16]} fxe4 {[%emt 0:00:47]} 26. g4 {[%emt 0:00:31]} Qe7 {[%emt 0:02:15]} 27. Rxd8 {[%emt 0:01:20]} Rxd8 {[%emt 0:00:38]} 28. Qe2 {[%emt 0:00:30]} Bxc3 {[%emt 0:00:45]} 29. Qxb5 {[%emt 0:00:14]} e3 {[%emt 0:00:29]} 30. Qc4 {[%emt 0:00:28]} Be5 {[%emt 0:00:31]} 31. Bxe5+ {[%emt 0:03:13]} Qxe5 {[%emt 0:00:03]} 32. Qf4 {[%emt 0:00:10]} Qxf4 {[%emt 0:00:33]} 33. Rxf4 {[%emt 0:00:03]} Rd1+ {[%emt 0:00:13]} 34. Kg2 {[%emt 0:00:31]} e2 {[%emt 0:00:11]} 0-1

[Event "EYCC Open-U14 2019"]
[Site "Bratislava"]
[Date "2019.08.08"]
[Round "7.45"]
[White "Zemach, Nadav"]
[Black "Olde, Karl Erik"]
[Result "1/2-1/2"]
[ECO "E06"]
[WhiteElo "1997"]
[BlackElo "1516"]
[Annotator "NA"]
[PlyCount "39"]
[EventDate "2019.08.02"]
[EventType "swiss"]
[EventCountry "SVK"]
[SourceTitle "playchess.com"]
[Source "ChessBase"]
[SourceQuality "1"]
[TimeControl "40/5400+30:1800+30"]

1. d4 {[%emt 0:00:00]} d5 {[%emt 0:00:00]} 2. c4 {[%emt 0:00:00]} e6 {[%emt 0:00:00]} 3. Nf3 {[%emt 0:00:00]} Nf6 {[%emt 0:00:00]} 4. g3 {[%emt 0:00:00]} Be7 {[%emt 0:00:14]} 5. Bg2 {[%emt 0:00:00]} O-O {[%emt 0:00:20]} 6. O-O {[%emt 0:00:00]} dxc4 {[%emt 0:00:54]} 7. Qc2 {[%emt 0:00:00]} a6 {[%emt 0:00:19]} 8. a4 {[%emt 0:00:02]} Bd7 {[%emt 0:00:53]} 9. Qxc4 {[%emt 0:00:05]} Bc6 {[%emt 0:00:08]} 10. Bf4 {[%emt 0:00:23]} Nh5 {[%emt 0:13:03]} 11. Bd2 {[%emt 0:00:59]} Bd5 {[%emt 0:01:45]} 12. Qc2 {[%emt 0:11:01]} Nf6 {[%emt 0:07:22]} 13. Nc3 {[%emt 0:00:16]} Bxf3 {[%emt 0:06:39]} 14. Bxf3 {[%emt 0:01:19]} c6 {[%emt 0:00:21]} 15. Qb3 {[%emt 0:10:56]} Qxd4 {[%emt 0:03:52]} 16. Rfd1 {[%emt 0:03:17]} Qb4 {[%emt 0:01:26]} 17. Qc2 {[%emt 0:00:24]} Qb6 {[%emt 0:02:56]} 18. Bf4 {[%emt 0:24:20]} a5 {[%emt 0:05:42]} 19. e4 {[%emt 0:06:28]} Nbd7 {[%emt 0:05:51]} 20. Rac1 {[%emt 0:06:24]} 1/2-1/2

[Event "EYCC Open-U14 2019"]
[Site "Bratislava"]
[Date "2019.08.08"]
[Round "7.46"]
[White "Danaci, Ege"]
[Black "Petreski, Leonid"]
[Result "1-0"]
[ECO "B33"]
[WhiteElo "1976"]
[BlackElo "1644"]
[Annotator "NA"]
[PlyCount "61"]
[EventDate "2019.08.02"]
[EventType "swiss"]
[EventCountry "SVK"]
[SourceTitle "playchess.com"]
[Source "ChessBase"]
[SourceQuality "1"]
[TimeControl "40/5400+30:1800+30"]

1. e4 {[%emt 0:00:00]} c5 {[%emt 0:00:00]} 2. Nf3 {[%emt 0:00:07]} Nc6 {[%emt 0:00:00]} 3. d4 {[%emt 0:00:13]} cxd4 {[%emt 0:00:00]} 4. Nxd4 {[%emt 0:00:12]} Nf6 {[%emt 0:00:00]} 5. Nc3 {[%emt 0:00:15]} e5 6. Ndb5 {[%emt 0:02:35]} d6 {[%emt 0:00:25]} 7. Bg5 {[%emt 0:01:41]} a6 {[%emt 0:00:07]} 8. Na3 {[%emt 0:00:41]} b5 {[%emt 0:01:04]} 9. Nd5 {[%emt 0:00:09]} Be7 {[%emt 0:00:34]} 10. Bxf6 {[%emt 0:02:06]} Bxf6 {[%emt 0:00:31]} 11. c3 {[%emt 0:01:13]} Bg5 {[%emt 0:01:42]} 12. Be2 {[%emt 0:02:09]} O-O {[%emt 0:01:03]} 13. O-O {[%emt 0:04:33]} Be6 {[%emt 0:02:18]} 14. Bg4 {[%emt 0:02:24]} g6 {[%emt 0:08:10]} 15. Nc2 {[%emt 0:03:10]} Kh8 {[%emt 0:04:37]} 16. Nce3 {[%emt 0:13:12]} f5 {[%emt 0:07:59]} 17. Bh3 {[%emt 0:00:17]} Bc8 {[%emt 0:05:11]} 18. a4 {[%emt 0:13:29]} Rb8 {[%emt 0:09:41]} 19. axb5 {[%emt 0:08:38]} Rxb5 {[%emt 0:02:24]} 20. Nc4 {[%emt 0:01:22]} fxe4 {[%emt 0:13:16]} 21. Bxc8 {[%emt 0:00:23]} Qxc8 {[%emt 0:00:05]} 22. Nxd6 {[%emt 0:00:33]} Qb8 {[%emt 0:02:18]} 23. Nxb5 {[%emt 0:00:20]} Qxb5 {[%emt 0:00:09]} 24. Qg4 {[%emt 0:01:26]} Qxd5 {[%emt 0:01:27]} 25. Qxg5 {[%emt 0:00:02]} Qb5 {[%emt 0:00:23]} 26. b4 {[%emt 0:02:01]} Kg7 {[%emt 0:01:52]} 27. Qe3 {[%emt 0:00:12]} Kf6 {[%emt 0:03:33]} 28. Qxe4 {[%emt 0:00:14]} Ke6 {[%emt 0:00:32]} 29. c4 {[%emt 0:00:09]} Qb6 {[%emt 0:00:24]} 30. Qd5+ {[%emt 0:00:11]} Kf6 {[%emt 0:00:28]} 31. b5 {[%emt 0:00:10]} 1-0

[Event "EYCC Open-U14 2019"]
[Site "Bratislava"]
[Date "2019.08.08"]
[Round "7.47"]
[White "Backiel, Hubert"]
[Black "Vaupot, Luka"]
[Result "0-1"]
[ECO "C02"]
[WhiteElo "1748"]
[BlackElo "1939"]
[Annotator "NA"]
[PlyCount "132"]
[EventDate "2019.08.02"]
[EventType "swiss"]
[EventCountry "SVK"]
[SourceTitle "playchess.com"]
[Source "ChessBase"]
[SourceQuality "1"]
[TimeControl "40/5400+30:1800+30"]

1. e4 {[%emt 0:00:00]} e6 {[%emt 0:00:00]} 2. d4 {[%emt 0:00:49]} d5 {[%emt 0:00:00]} 3. e5 {[%emt 0:00:54]} c5 {[%emt 0:00:00]} 4. c3 {[%emt 0:00:48]} Nc6 {[%emt 0:00:00]} 5. Be3 {[%emt 0:03:09]} Qb6 {[%emt 0:13:03]} 6. Qd2 {[%emt 0:01:55]} Bd7 {[%emt 0:05:41]} 7. Nf3 {[%emt 0:01:35]} f6 {[%emt 0:01:24]} 8. Be2 {[%emt 0:36:46]} cxd4 {[%emt 0:10:50]} 9. cxd4 {[%emt 0:02:40]} fxe5 {[%emt 0:02:36]} 10. Nxe5 {[%emt 0:03:08]} Nxe5 {[%emt 0:01:01]} 11. dxe5 {[%emt 0:00:22]} Bc5 {[%emt 0:00:09]} 12. Bxc5 {[%emt 0:02:04]} Qxc5 {[%emt 0:00:04]} 13. O-O {[%emt 0:00:56]} Ne7 {[%emt 0:00:15]} 14. b4 {[%emt 0:14:34]} Qb6 {[%emt 0:02:15]} 15. a4 {[%emt 0:01:57]} a6 {[%emt 0:16:14]} 16. a5 {[%emt 0:06:54]} Qa7 {[%emt 0:00:14]} 17. Qg5 {[%emt 0:06:00]} Nf5 {[%emt 0:00:42]} 18. Nd2 {[%emt 0:01:20]} O-O {[%emt 0:00:58]} 19. Nf3 {[%emt 0:00:29]} Nd4 {[%emt 0:20:08]} 20. Bd1 {[%emt 0:05:57]} Rac8 {[%emt 0:01:50]} 21. Qd2 {[%emt 0:01:31]} Rc4 {[%emt 0:04:02]} 22. Ra3 {[%emt 0:03:00]} Bb5 {[%emt 0:05:57]} 23. Re1 {[%emt 0:00:26]} Nxf3+ {[%emt 0:00:19]} 24. Bxf3 {[%emt 0:00:32]} Qd4 {[%emt 0:00:03]} 25. Rd3 {[%emt 0:01:40]} Qf4 {[%emt 0:00:07]} 26. Ree3 {[%emt 0:01:19]} Rxb4 {[%emt 0:00:35]} 27. g3 {[%emt 0:00:00]} Rb1+ {[%emt 0:00:48]} 28. Kg2 {[%emt 0:00:01]} Qb4 {[%emt 0:00:02]} 29. Qxb4 Rxb4 {[%emt 0:00:02]} 30. Rb3 {[%emt 0:01:35]} Rxb3 {[%emt 0:02:09]} 31. Rxb3 {[%emt 0:00:03]} Rc8 {[%emt 0:01:06]} 32. Bg4 {[%emt 0:01:33]} Kf7 {[%emt 0:00:38]} 33. Rb2 {[%emt 0:00:53]} Rc5 {[%emt 0:02:30]} 34. f4 {[%emt 0:01:07]} Bc6 {[%emt 0:01:35]} 35. Ra2 {[%emt 0:00:01]} g6 {[%emt 0:01:51]} 36. Kf2 {[%emt 0:00:34]} Rc4 {[%emt 0:02:17]} 37. Ke3 {[%emt 0:00:58]} Ke7 {[%emt 0:04:39]} 38. Be2 {[%emt 0:00:50]} Rb4 {[%emt 0:00:40]} 39. Kd2 {[%emt 0:00:36]} Bb5 {[%emt 0:01:37]} 40. Kc3 {[%emt 0:00:00]} Rb1 {[%emt 0:00:00]} 41. Bg4 {[%emt 0:04:22]} Bc4 {[%emt 0:01:28]} 42. Ra3 {[%emt 0:01:48]} Rh1 {[%emt 0:02:52]} 43. Kd4 {[%emt 0:04:28]} Rxh2 {[%emt 0:00:52]} 44. Kc5 {[%emt 0:00:52]} Rb2 {[%emt 0:00:17]} 45. Bd1 {[%emt 0:00:02]} Kd7 {[%emt 0:03:57]} 46. Bf3 {[%emt 0:03:39]} Rb5+ {[%emt 0:06:46]} 47. Kd4 {[%emt 0:00:06]} b6 {[%emt 0:00:09]} 48. axb6 {[%emt 0:00:27]} Rxb6 {[%emt 0:00:03]} 49. Kc5 {[%emt 0:00:02]} Kc7 {[%emt 0:05:17]} 50. Bg4 {[%emt 0:00:29]} Rc6+ {[%emt 0:00:19]} 51. Kd4 {[%emt 0:00:50]} Kb6 {[%emt 0:00:44]} 52. Bd1 {[%emt 0:00:43]} a5 {[%emt 0:00:45]} 53. Ra1 {[%emt 0:02:51]} Bb5 {[%emt 0:00:56]} 54. Bb3 {[%emt 0:00:42]} a4 {[%emt 0:00:40]} 55. Bd1 {[%emt 0:04:10]} Ka5 {[%emt 0:02:45]} 56. g4 {[%emt 0:01:05]} Rc4+ {[%emt 0:00:40]} 57. Ke3 {[%emt 0:02:21]} Re4+ {[%emt 0:02:26]} 58. Kf3 {[%emt 0:00:57]} Re1 {[%emt 0:01:45]} 59. Kf2 {[%emt 0:01:07]} Rf1+ {[%emt 0:00:28]} 60. Ke3 {[%emt 0:00:09]} Kb6 {[%emt 0:00:31]} 61. Rb1 {[%emt 0:03:25]} Kc5 {[%emt 0:02:25]} 62. f5 {[%emt 0:05:40]} gxf5 {[%emt 0:01:04]} 63. Rxb5+ {[%emt 0:01:47]} Kxb5 {[%emt 0:00:01]} 64. Be2+ {[%emt 0:00:31]} Kb4 {[%emt 0:00:02]} 65. Bxf1 {[%emt 0:00:30]} a3 {[%emt 0:00:07]} 66. gxf5 {[%emt 0:00:30]} a2 {[%emt 0:00:05]} 0-1

[Event "EYCC Open-U14 2019"]
[Site "Bratislava"]
[Date "2019.08.08"]
[Round "7.48"]
[White "Putar, Leon"]
[Black "Stockmann, Till"]
[Result "1-0"]
[ECO "B22"]
[WhiteElo "1742"]
[BlackElo "1975"]
[Annotator "NA"]
[PlyCount "23"]
[EventDate "2019.08.02"]
[EventType "swiss"]
[EventCountry "SVK"]
[SourceTitle "playchess.com"]
[Source "ChessBase"]
[SourceQuality "1"]
[TimeControl "40/5400+30:1800+30"]

1. e4 {[%emt 0:00:00]} c5 {[%emt 0:00:00]} 2. c3 {[%emt 0:00:00]} d5 {[%emt 0:01:11]} 3. e5 {[%emt 0:00:43]} Nc6 {[%emt 0:09:32]} 4. Nf3 {[%emt 0:05:54]} Bg4 {[%emt 0:03:53]} 5. Bb5 {[%emt 0:00:47]} e6 {[%emt 0:04:01]} 6. Bxc6+ {[%emt 0:00:54]} bxc6 {[%emt 0:00:37]} 7. Qa4 {[%emt 0:00:05]} f5 {[%emt 0:05:57]} 8. Qxc6+ {[%emt 0:00:23]} Ke7 {[%emt 0:02:45]} 9. Qb7+ {[%emt 0:00:16]} Ke8 {[%emt 0:00:24]} 10. Ng5 {[%emt 0:02:36]} Ne7 {[%emt 0:02:55]} 11. Nxe6 {[%emt 0:00:24]} Qc8 {[%emt 0:00:13]} 12. Qxa8 {[%emt 0:02:31]} 1-0

[Event "EYCC Open-U14 2019"]
[Site "Bratislava"]
[Date "2019.08.09"]
[Round "8.1"]
[White "Tsvetkov, Andrey"]
[Black "Popov, Konstantin"]
[Result "1/2-1/2"]
[ECO "E20"]
[WhiteElo "2324"]
[BlackElo "2367"]
[Annotator "NA"]
[PlyCount "119"]
[EventDate "2019.08.02"]
[EventType "swiss"]
[EventCountry "SVK"]
[SourceTitle "playchess.com"]
[Source "ChessBase"]
[SourceQuality "1"]
[TimeControl "40/5400+30:1800+30"]

1. d4 {[%emt 0:00:00]} Nf6 {[%emt 0:00:00]} 2. c4 {[%emt 0:00:00]} e6 {[%emt 0:00:06]} 3. Nc3 {[%emt 0:00:00]} Bb4 {[%emt 0:00:26]} 4. f3 {[%emt 0:00:00]} c5 {[%emt 0:00:36]} 5. d5 {[%emt 0:00:00]} d6 {[%emt 0:00:17]} 6. e4 {[%emt 0:00:18]} O-O {[%emt 0:00:33]} 7. Nge2 {[%emt 0:00:14]} a6 {[%emt 0:01:22]} 8. Ng3 {[%emt 0:04:13]} b5 {[%emt 0:01:03]} 9. Be2 {[%emt 0:01:44]} exd5 {[%emt 0:11:48]} 10. cxd5 {[%emt 0:00:06]} c4 {[%emt 0:00:57]} 11. O-O {[%emt 0:00:15]} Nbd7 {[%emt 0:01:05]} 12. Kh1 {[%emt 0:00:34]} Nc5 {[%emt 0:04:13]} 13. Be3 {[%emt 0:06:19]} Re8 {[%emt 0:04:26]} 14. Bd4 {[%emt 0:01:15]} Ba5 {[%emt 0:04:19]} 15. b3 {[%emt 0:15:03]} h5 {[%emt 0:19:48]} 16. bxc4 {[%emt 0:03:47]} h4 {[%emt 0:00:45]} 17. Nf5 {[%emt 0:00:16]} Bxf5 {[%emt 0:00:12]} 18. exf5 {[%emt 0:00:11]} b4 {[%emt 0:05:50]} 19. Ne4 {[%emt 0:09:00]} Ncxe4 {[%emt 0:09:10]} 20. fxe4 {[%emt 0:00:20]} Bb6 {[%emt 0:01:12]} 21. Bxf6 {[%emt 0:08:54]} Qxf6 {[%emt 0:01:16]} 22. Qd3 {[%emt 0:01:20]} Bc5 {[%emt 0:05:11]} 23. Rae1 {[%emt 0:12:40]} a5 {[%emt 0:01:38]} 24. Bd1 {[%emt 0:00:19]} a4 {[%emt 0:01:12]} 25. Re2 {[%emt 0:01:17]} Reb8 {[%emt 0:16:29]} 26. Bc2 {[%emt 0:01:27]} b3 {[%emt 0:05:49]} 27. axb3 {[%emt 0:00:13]} axb3 {[%emt 0:00:20]} 28. Bb1 {[%emt 0:00:43]} b2 {[%emt 0:02:35]} 29. e5 {[%emt 0:05:54]} dxe5 {[%emt 0:00:12]} 30. Qe4 {[%emt 0:00:01]} Bd4 {[%emt 0:00:34]} 31. Rd2 {[%emt 0:05:43]} Rc8 {[%emt 0:01:08]} 32. d6 {[%emt 0:00:17]} Rd8 {[%emt 0:00:33]} 33. c5 {[%emt 0:00:13]} Bxc5 {[%emt 0:00:29]} 34. Rxb2 {[%emt 0:00:13]} Bxd6 {[%emt 0:00:30]} 35. Ba2 {[%emt 0:01:34]} Rab8 {[%emt 0:00:24]} 36. Rxb8 {[%emt 0:01:22]} Rxb8 {[%emt 0:00:22]} 37. Rb1 {[%emt 0:00:03]} Rxb1+ {[%emt 0:00:40]} 38. Bxb1 {[%emt 0:08:45]} Qg5 {[%emt 0:00:35]} 39. Qe1 {[%emt 0:00:05]} Qf4 {[%emt 0:00:28]} 40. Be4 {[%emt 0:00:00]} Bb4 {[%emt 0:00:00]} 41. Qb1 {[%emt 0:00:56]} Qf2 {[%emt 0:15:37]} 42. Qd1 {[%emt 0:04:27]} Qe3 {[%emt 0:04:11]} 43. Bd5 {[%emt 0:19:34]} Bc5 {[%emt 0:10:32]} 44. Qb1 {[%emt 0:05:01]} Qd2 {[%emt 0:01:59]} 45. Be4 {[%emt 0:01:05]} Ba3 {[%emt 0:00:39]} 46. Qf1 {[%emt 0:00:38]} Qe3 {[%emt 0:00:00]} 47. Bd5 {[%emt 0:01:00]} e4 {[%emt 0:01:12]} 48. Qb1 {[%emt 0:12:36]} h3 {[%emt 0:00:27]} 49. Bxe4 {[%emt 0:00:51]} Bc1 {[%emt 0:00:19]} 50. gxh3 {[%emt 0:01:18]} Qe1+ {[%emt 0:00:19]} 51. Kg2 {[%emt 0:00:00]} Qe2+ {[%emt 0:00:20]} 52. Kg1 {[%emt 0:00:51]} Bf4 {[%emt 0:01:05]} 53. Bg2 {[%emt 0:00:15]} Qe5 {[%emt 0:00:11]} 54. Qe4 {[%emt 0:00:44]} Qc5+ {[%emt 0:00:39]} 55. Kf1 {[%emt 0:00:19]} Be3 {[%emt 0:00:30]} 56. Qd3 {[%emt 0:00:50]} Bd4 {[%emt 0:00:30]} 57. Be4 {[%emt 0:01:10]} Qc1+ {[%emt 0:00:29]} 58. Ke2 {[%emt 0:00:12]} Qb2+ {[%emt 0:00:43]} 59. Qd2 {[%emt 0:00:17]} Qb5+ {[%emt 0:00:10]} 60. Qd3 {[%emt 0:00:12]} 1/2-1/2

[Event "EYCC Open-U14 2019"]
[Site "Bratislava"]
[Date "2019.08.09"]
[Round "8.2"]
[White "Oglaza, Oskar"]
[Black "Kostolansky, Sebastian Lukas"]
[Result "1/2-1/2"]
[ECO "D70"]
[WhiteElo "2345"]
[BlackElo "2406"]
[Annotator "NA"]
[PlyCount "169"]
[EventDate "2019.08.02"]
[EventType "swiss"]
[EventCountry "SVK"]
[SourceTitle "playchess.com"]
[Source "ChessBase"]
[SourceQuality "1"]
[TimeControl "40/5400+30:1800+30"]

1. d4 {[%emt 0:00:00]} Nf6 {[%emt 0:00:00]} 2. c4 {[%emt 0:00:00]} g6 {[%emt 0:00:46]} 3. Nf3 {[%emt 0:00:00]} Bg7 {[%emt 0:00:06]} 4. g3 {[%emt 0:00:00]} b6 {[%emt 0:04:09]} 5. Bg2 {[%emt 0:01:48]} Bb7 {[%emt 0:00:05]} 6. Nc3 {[%emt 0:02:18]} O-O {[%emt 0:01:51]} 7. O-O {[%emt 0:01:09]} d6 {[%emt 0:10:00]} 8. Qc2 {[%emt 0:07:57]} c5 {[%emt 0:07:45]} 9. Rd1 {[%emt 0:14:44]} cxd4 {[%emt 0:05:00]} 10. Nxd4 {[%emt 0:20:32]} Bxg2 {[%emt 0:00:30]} 11. Kxg2 {[%emt 0:00:05]} Qc7 {[%emt 0:03:02]} 12. Nd5 {[%emt 0:07:10]} Nxd5 {[%emt 0:14:02]} 13. cxd5 {[%emt 0:00:10]} Qxc2 {[%emt 0:08:08]} 14. Nxc2 {[%emt 0:00:06]} Na6 {[%emt 0:02:37]} 15. Rb1 {[%emt 0:06:26]} Rfc8 {[%emt 0:02:56]} 16. Ne1 {[%emt 0:01:44]} Rc7 {[%emt 0:12:13]} 17. Bd2 {[%emt 0:05:22]} Nc5 {[%emt 0:05:30]} 18. Rdc1 {[%emt 0:12:02]} Rac8 {[%emt 0:01:34]} 19. f3 {[%emt 0:01:14]} e6 {[%emt 0:03:49]} 20. dxe6 {[%emt 0:02:01]} fxe6 {[%emt 0:00:07]} 21. b3 {[%emt 0:01:59]} Kf7 {[%emt 0:01:44]} 22. Rc2 {[%emt 0:00:45]} d5 {[%emt 0:03:42]} 23. Rbc1 {[%emt 0:00:08]} e5 {[%emt 0:00:42]} 24. Nd3 {[%emt 0:01:20]} Ne6 {[%emt 0:04:00]} 25. Rxc7+ {[%emt 0:00:17]} Rxc7 {[%emt 0:00:09]} 26. Rxc7+ {[%emt 0:01:27]} Nxc7 {[%emt 0:00:04]} 27. e4 {[%emt 0:00:20]} Ke6 {[%emt 0:01:20]} 28. Kf2 {[%emt 0:01:37]} Nb5 {[%emt 0:02:20]} 29. exd5+ {[%emt 0:00:08]} Kxd5 {[%emt 0:00:05]} 30. Nb4+ {[%emt 0:00:19]} Kd4 {[%emt 0:03:54]} 31. a4 {[%emt 0:00:42]} Nc7 {[%emt 0:01:04]} 32. Ke2 {[%emt 0:00:20]} Kc5 {[%emt 0:00:57]} 33. Nc2 {[%emt 0:04:17]} Ne6 {[%emt 0:00:38]} 34. Kd3 {[%emt 0:00:18]} Kd5 {[%emt 0:00:20]} 35. b4 {[%emt 0:00:58]} a6 {[%emt 0:00:59]} 36. Bc3 {[%emt 0:04:05]} Ng5 {[%emt 0:01:12]} 37. Ne3+ {[%emt 0:00:56]} Kc6 {[%emt 0:00:30]} 38. f4 {[%emt 0:02:13]} exf4 {[%emt 0:00:19]} 39. gxf4 {[%emt 0:00:58]} Bxc3 {[%emt 0:00:27]} 40. Kxc3 {[%emt 0:00:00]} Nf3 {[%emt 0:00:00]} 41. Kd3 {[%emt 0:10:26]} b5 {[%emt 0:05:35]} 42. a5 {[%emt 0:03:57]} Kd6 {[%emt 0:02:25]} 43. h3 {[%emt 0:02:14]} Ng1 {[%emt 0:04:32]} 44. h4 {[%emt 0:02:33]} Nf3 {[%emt 0:01:59]} 45. Ng2 {[%emt 0:03:25]} Kd5 {[%emt 0:02:26]} 46. Ne3+ {[%emt 0:00:09]} Ke6 {[%emt 0:01:29]} 47. Ke4 {[%emt 0:05:13]} Nxh4 {[%emt 0:02:11]} 48. Nd5 {[%emt 0:00:03]} Kd6 {[%emt 0:02:07]} 49. Nf6 {[%emt 0:00:14]} h6 {[%emt 0:06:12]} 50. Ne8+ {[%emt 0:03:02]} Kc6 {[%emt 0:03:00]} 51. Ng7 {[%emt 0:02:43]} Kd6 {[%emt 0:02:35]} 52. Ne8+ {[%emt 0:00:07]} Kc6 {[%emt 0:00:09]} 53. Ng7 {[%emt 0:00:08]} Kd7 {[%emt 0:01:25]} 54. Kd5 {[%emt 0:01:13]} Ng2 {[%emt 0:00:22]} 55. Ne6 {[%emt 0:00:13]} Ne3+ {[%emt 0:01:23]} 56. Ke5 {[%emt 0:00:06]} Ng4+ {[%emt 0:00:30]} 57. Kd5 {[%emt 0:00:05]} Nf6+ {[%emt 0:00:36]} 58. Ke5 {[%emt 0:00:03]} Ng4+ {[%emt 0:00:04]} 59. Kd5 {[%emt 0:00:06]} Nf6+ {[%emt 0:00:07]} 60. Ke5 {[%emt 0:00:06]} Ke7 {[%emt 0:01:22]} 61. Nc7 {[%emt 0:01:53]} Nd7+ {[%emt 0:00:38]} 62. Kd5 {[%emt 0:00:32]} Nb8 {[%emt 0:00:30]} 63. Kc5 {[%emt 0:01:07]} h5 {[%emt 0:00:39]} 64. f5 {[%emt 0:02:18]} gxf5 {[%emt 0:00:34]} 65. Nd5+ {[%emt 0:00:02]} Kd7 {[%emt 0:00:32]} 66. Nf6+ {[%emt 0:00:04]} Kc7 {[%emt 0:00:26]} 67. Nxh5 {[%emt 0:00:30]} Nc6 {[%emt 0:00:24]} 68. Ng7 {[%emt 0:01:55]} Ne5 {[%emt 0:00:27]} 69. Kd4 {[%emt 0:00:25]} Nc6+ {[%emt 0:00:30]} 70. Kc5 {[%emt 0:00:41]} Ne5 {[%emt 0:00:42]} 71. Kd4 {[%emt 0:00:08]} Nf3+ {[%emt 0:00:02]} 72. Ke3 {[%emt 0:01:06]} Nh4 {[%emt 0:00:25]} 73. Ne6+ {[%emt 0:00:05]} Kc6 {[%emt 0:01:02]} 74. Nc5 {[%emt 0:00:21]} Ng2+ {[%emt 0:00:19]} 75. Kf3 {[%emt 0:00:44]} Ne1+ {[%emt 0:00:23]} 76. Kf4 {[%emt 0:00:02]} Nc2 {[%emt 0:00:29]} 77. Nxa6 {[%emt 0:00:06]} Nd4 {[%emt 0:00:47]} 78. Ke5 {[%emt 0:01:22]} Nc2 {[%emt 0:00:04]} 79. Kxf5 {[%emt 0:00:06]} Kb7 {[%emt 0:00:05]} 80. Nc5+ {[%emt 0:00:06]} Ka7 {[%emt 0:00:04]} 81. Nd3 {[%emt 0:00:31]} Ka6 {[%emt 0:00:06]} 82. Ke5 {[%emt 0:00:19]} Nxb4 {[%emt 0:00:07]} 83. Nxb4+ {[%emt 0:00:05]} Kxa5 {[%emt 0:00:06]} 84. Nd5 {[%emt 0:00:02]} b4 {[%emt 0:00:08]} 85. Nxb4 {[%emt 0:00:02]} 1/2-1/2